lending/lending_fUSD_20250913
["ID","MTS","AMOUNT","RATE_DAILY","PERIOD"]
[385360889,1757790815059,-1000.0,0.00031506,2]
[385360890,1757790815069,-1262.94,0.00031506,2]
[385360891,1757790815078,-618.58,0.00031506,2]
[385360892,1757790815089,-400.0,0.00031506,2]
[385360893,1757790815100,-400.0,0.00031506,2]
[385360894,1757790815110,-666.27,0.00031506,2]
[385360895,1757790815120,-2778.98,0.00031506,2]
[385360896,1757790815130,-1602.35,0.00031506,2]
[385360897,1757790815140,-400.0,0.00031506,2]
[385360898,1757790815149,-438.09,0.00031506,2]
[385360899,1757790815159,-344.99,0.00031506,2]
[385360900,1757790815168,-523.76,0.00031506,2]
[385360901,1757790815178,-734.11,0.00031506,2]
[385360902,1757790815187,-634.16,0.00031506,2]
[385360903,1757790815197,-887.05,0.00031506,2]
[385360904,1757790815206,-942.86,0.00031506,2]
[385360905,1757790815216,-1697.7,0.00031506,2]
[385360906,1757790815227,-523.01159354,0.00031506,2]
[385360907,1757790815237,-1448.36,0.00031506,2]
[385360908,1757790815247,-1288.99,0.00031506,2]
[385360909,1757790815257,-2431.97,0.00031506,2]
[385360910,1757790815267,-488.5,0.00031506,2]
[385360911,1757790815277,-655.13,0.00031506,2]
[385360912,1757790815287,-693.6,0.00031506,2]
[385360913,1757790815298,-985.78,0.00031506,2]
[385360914,1757790815308,-914.74,0.00031506,2]
[385360915,1757790815318,-1199.53,0.00031506,2]
[385360916,1757790815328,-400.0,0.00031506,2]
[385360917,1757790815338,-3119.56,0.00031506,2]
[385360918,1757790815348,-492.5,0.00031506,2]
[385360919,1757790815359,-400.0,0.00031506,2]
[385360920,1757790815370,-683.66,0.00031506,2]
[385360921,1757790815383,-869.51,0.00031506,2]
[385360922,1757790815392,-1155.29,0.00031506,2]
[385360923,1757790815402,-1010.79,0.00031506,2]
[385360924,1757790815412,-655.9,0.00031506,2]
[385360925,1757790815421,-450.64,0.00031506,2]
[385360926,1757790815431,-1130.65,0.00031506,2]
[385360927,1757790815442,-1727.97,0.00031506,2]
[385360928,1757790815451,-971.87,0.00031506,2]
[385360929,1757790815461,-1049.74,0.00031506,2]
[385360930,1757790815472,-536.28,0.00031506,2]
[385360931,1757790815484,-920.05,0.00031506,2]
[385360932,1757790815495,-807.81,0.00031506,2]
[385360933,1757790815510,-1540.01,0.00031506,2]
[385360934,1757790815520,-339.77174269,0.00031506,2]
[385360935,1757790815530,-767.61,0.00031506,2]
[385360936,1757790815541,-843.61,0.00031506,2]
[385360937,1757790815551,-798.34,0.00031506,2]
[385360938,1757790815561,-1507.18,0.00031506,2]
[385360939,1757790815573,-721.19,0.00031506,2]
[385360940,1757790815583,-1074.98,0.00031506,2]
[385360941,1757790815593,-736.94,0.00031506,2]
[385360942,1757790815604,-1380.97,0.00031506,2]
[385360943,1757790815614,-8779.55,0.00031506,2]
[385360944,1757790815624,-400.0,0.00031506,2]
[385360945,1757790815634,-1003.9,0.00031506,2]
[385360946,1757790815645,-594.63,0.00031506,2]
[385360947,1757790815656,-506.79,0.00031506,2]
[385360948,1757790815666,-729.26,0.00031506,2]
[385360949,1757790815675,-649.71,0.00031506,2]
[385360950,1757790815686,-813.26,0.00031506,2]
[385360951,1757790815696,-752.66,0.00031506,2]
[385360952,1757790815706,-666.01,0.00031506,2]
[385360953,1757790815716,-2622.41,0.00031506,2]
[385360954,1757790815726,-851.12,0.00031506,2]
[385360955,1757790815739,-745.71,0.00031506,2]
[385360956,1757790815749,-3808.9543688,0.00031529,2]
[385360957,1757790815759,-332.60791905,0.00031578,2]
[385360958,1757790815771,-50925.12,0.000316,7]
[385360959,1757790815782,-500.0,0.00031609,2]
[385360960,1757790815792,-232.41,0.00031643,120]
[385360961,1757790815802,-265.7205,0.0003169,2]
[385360962,1757790815813,-158.0,0.00031694,120]
[385360963,1757790815824,-202.0,0.0003172,2]
[385360964,1757790815834,-519.0,0.00031765,120]
[385360965,1757790815844,-403.48,0.0003178,2]
[385360966,1757790815854,-400.0,0.0003178,2]
[385360967,1757790815864,-400.0,0.0003178,2]
[385360968,1757790815874,-699.06,0.0003178,2]
[385360969,1757790815884,-888.74,0.0003178,2]
[385360970,1757790815894,-1067.33,0.0003178,2]
[385360971,1757790815904,-494.9,0.0003178,2]
[385360972,1757790815914,-400.0,0.0003178,2]
[385360973,1757790815924,-1011.1,0.0003178,2]
[385360974,1757790815934,-411.04,0.0003178,2]
[385360975,1757790815944,-400.0,0.0003178,2]
[385360976,1757790815953,-436.55,0.0003178,2]
[385360977,1757790815963,-415.46,0.0003178,2]
[385360978,1757790815973,-1222.47,0.0003178,2]
[385360979,1757790815985,-622.37,0.0003178,2]
[385360980,1757790815995,-751.49,0.0003178,2]
[385360981,1757790816006,-512.06,0.0003178,2]
[385360982,1757790816016,-284.18247817,0.0003178,2]
[385360983,1757790816027,-516.89,0.0003178,2]
[385360984,1757790816039,-572.28,0.0003178,2]
[385360985,1757790816048,-400.0,0.0003178,2]
[385360986,1757790816058,-400.0,0.0003178,2]
[385360987,1757790816068,-400.0,0.0003178,2]
[385360988,1757790816078,-405.34,0.0003178,2]
[385360989,1757790816088,-892.3,0.0003178,2]
[385360990,1757790816098,-408.40353492,0.0003178,2]
[385360991,1757790816108,-2090.35,0.0003178,2]
[385360992,1757790816118,-445.77,0.0003178,2]
[385360993,1757790816127,-849.51,0.0003178,2]
[385360994,1757790816137,-764.33,0.0003178,2]
[385360995,1757790816147,-812.38,0.0003178,2]
[385360996,1757790816157,-579.38,0.0003178,2]
[385360997,1757790816167,-400.0,0.0003178,2]
[385360998,1757790816177,-400.0,0.0003178,2]
[385360999,1757790816187,-400.0,0.0003178,2]
[385361000,1757790816197,-1141.14,0.0003178,2]
[385361001,1757790816206,-650.0,0.0003178,120]
[385361002,1757790816216,-593.32,0.0003178,2]
[385361003,1757790816226,-400.0,0.0003178,2]
[385361004,1757790816236,-762.02,0.0003178,2]
[385361005,1757790816246,-400.0,0.0003178,2]
[385361006,1757790816256,-633.2,0.0003178,2]
[385361007,1757790816266,-548.72,0.0003178,2]
[385361008,1757790816276,-400.0,0.0003178,2]
[385361009,1757790816286,-400.0,0.0003178,2]
[385361010,1757790816296,-411.96,0.0003178,2]
[385361011,1757790816306,-653.34,0.0003178,2]
[385361012,1757790816316,-382.292001,0.0003178,2]
[385361013,1757790816327,-891.73,0.0003178,2]
[385361014,1757790816337,-400.0,0.0003178,2]
[385361015,1757790816347,-598.23,0.0003178,2]
[385361016,1757790816357,-1354.32,0.0003178,2]
[385361017,1757790816368,-518.98,0.0003178,2]
[385361018,1757790816378,-925.24,0.0003178,2]
[385361019,1757790816389,-722.44,0.0003178,2]
[385361020,1757790816399,-400.0,0.0003178,2]
[385361021,1757790816410,-506.66,0.0003178,2]
[385361022,1757790816420,-1909.11,0.0003178,2]
[385361023,1757790816430,-886.75,0.0003178,2]
[385361024,1757790816440,-400.0,0.0003178,2]
[385361025,1757790816450,-1138.1,0.0003178,2]
[385361026,1757790816460,-400.0,0.0003178,2]
[385361027,1757790816471,-400.0,0.0003178,2]
[385361028,1757790816483,-576.48,0.0003178,2]
[385361029,1757790816492,-400.0,0.0003178,2]
[385361030,1757790816507,-400.0,0.0003178,2]
[385361031,1757790816517,-712.7,0.0003178,2]
[385361032,1757790816527,-400.0,0.0003178,2]
[385361033,1757790816537,-2782.51,0.0003178,2]
[385361034,1757790816548,-400.0,0.0003178,2]
[385361035,1757790816558,-400.0,0.0003178,2]
[385361036,1757790816568,-749.03,0.0003178,2]
[385361037,1757790816578,-476.93,0.0003178,2]
[385361038,1757790816588,-652.17,0.0003178,2]
[385361039,1757790816598,-1095.32,0.0003178,2]
[385361040,1757790816608,-778.01,0.0003178,2]
[385361041,1757790816618,-450.34,0.0003178,2]
[385361042,1757790816628,-623.72,0.0003178,2]
[385361043,1757790816638,-232.41,0.0003178,120]
[385361044,1757790816648,-522.52,0.0003178,2]
[385361045,1757790816658,-1025.68,0.0003178,2]
[385361046,1757790816668,-188.48084796,0.0003178,2]
[385361047,1757790816678,-1547.47,0.0003178,2]
[385361048,1757790816688,-452.08,0.0003178,2]
[385361049,1757790816698,-400.0,0.0003178,2]
[385361050,1757790816708,-400.0,0.0003178,2]
[385361051,1757790816717,-954.04,0.0003178,2]
[385361052,1757790816727,-972.47,0.0003178,2]
[385361053,1757790816737,-440.6,0.0003178,2]
[385361054,1757790817011,-400.0,0.0003178,2]
[385361055,1757790817021,-1107.3,0.0003178,2]
[385361056,1757790817032,-1360.89,0.0003178,2]
[385361057,1757790817041,-438.49,0.0003178,2]
[385361058,1757790817051,-511.89,0.0003178,2]
[385361059,1757790817060,-875.02,0.0003178,2]
[385361060,1757790817070,-441.06,0.0003178,2]
[385361061,1757790817079,-540.34,0.0003178,2]
[385361062,1757790817088,-432.57,0.0003178,2]
[385361063,1757790817098,-605.1,0.0003178,2]
[385361064,1757790817107,-979.03,0.0003178,2]
[385361065,1757790817117,-639.66,0.0003178,2]
[385361066,1757790817126,-743.92,0.0003178,2]
[385361067,1757790817135,-549.77,0.0003178,2]
[385361068,1757790817145,-867.52,0.0003178,2]
[385361069,1757790817154,-757.51,0.0003178,2]
[385361070,1757790817164,-400.0,0.0003178,2]
[385361071,1757790817174,-1369.33,0.0003178,2]
[385361072,1757790817183,-976.5,0.0003178,2]
[385361073,1757790817193,-714.21,0.0003178,2]
[385361074,1757790817202,-1200.51,0.0003178,2]
[385361075,1757790817212,-429.54,0.0003178,2]
[385361076,1757790817221,-931.9,0.0003178,2]
[385361077,1757790817232,-767.06,0.0003178,2]
[385361078,1757790817241,-522.36,0.0003178,2]
[385361079,1757790817251,-464.29,0.0003178,2]
[385361080,1757790817260,-1050.24,0.0003178,2]
[385361081,1757790817270,-712.0,0.0003178,2]
[385361082,1757790817279,-770.1,0.0003178,2]
[385361083,1757790817288,-1340.61,0.0003178,2]
[385361084,1757790817297,-744.56,0.0003178,2]
[385361085,1757790817307,-503.78,0.0003178,2]
[385361086,1757790817317,-933.78,0.0003178,2]
[385361087,1757790817326,-917.05,0.0003178,2]
[385361088,1757790817335,-601.03,0.0003178,2]
[385361089,1757790817345,-408.67,0.0003178,2]
[385361090,1757790817354,-1166.06,0.0003178,2]
[385361091,1757790817364,-744.95,0.0003178,2]
[385361092,1757790817373,-962.63,0.0003178,2]
[385361093,1757790817383,-944.97,0.0003178,2]
[385361094,1757790817392,-697.23,0.0003178,2]
[385361095,1757790817401,-1128.5,0.0003178,2]
[385361096,1757790817411,-1287.15,0.0003178,2]
[385361097,1757790817419,-1140.31,0.0003178,2]
[385361098,1757790817429,-883.84,0.0003178,2]
[385361099,1757790817438,-1121.16,0.0003178,2]
[385361100,1757790817447,-400.0,0.0003178,2]
[385361101,1757790817457,-400.0,0.0003178,2]
[385361102,1757790817466,-513.88,0.0003178,2]
[385361103,1757790817475,-766.79,0.0003178,2]
[385361104,1757790817485,-836.28,0.0003178,2]
[385361105,1757790817494,-400.0,0.0003178,2]
[385361106,1757790817509,-1062.97,0.0003178,2]
[385361107,1757790817518,-701.46,0.0003178,2]
[385361108,1757790817527,-1010.43,0.0003178,2]
[385361109,1757790817537,-618.9,0.0003178,2]
[385361110,1757790817548,-740.73,0.0003178,2]
[385361111,1757790817558,-400.0,0.0003178,2]
[385361112,1757790817567,-617.0,0.0003178,2]
[385361113,1757790817580,-955.87,0.0003178,2]
[385361114,1757790817589,-400.0,0.0003178,2]
[385361115,1757790817598,-1394.15,0.0003178,2]
[385361116,1757790817607,-645.46,0.0003178,2]
[385361117,1757790817618,-475.16,0.0003178,2]
[385361118,1757790817627,-1201.25,0.0003178,2]
[385361119,1757790817636,-1420.48,0.0003178,2]
[385361120,1757790817646,-436.7,0.0003178,2]
[385361121,1757790817656,-886.97,0.0003178,2]
[385361122,1757790817666,-695.44,0.0003178,2]
[385361123,1757790817675,-869.21,0.0003178,2]
[385361124,1757790817684,-1459.76,0.0003178,2]
[385361125,1757790817693,-563.58,0.0003178,2]
[385361126,1757790817702,-565.26,0.0003178,2]
[385361127,1757790817712,-1134.89,0.0003178,2]
[385361128,1757790817721,-404.56,0.0003178,2]
[385361129,1757790817731,-734.93,0.0003178,2]
[385361130,1757790817740,-1149.23,0.0003178,2]
[385361131,1757790817750,-1190.66,0.0003178,2]
[385361132,1757790817759,-656.39,0.0003178,2]
[385361133,1757790817768,-1130.2,0.0003178,2]
[385361134,1757790817777,-914.37,0.0003178,2]
[385361135,1757790817787,-869.45,0.0003178,2]
[385361136,1757790817796,-400.0,0.0003178,2]
[385361137,1757790817805,-459.11,0.0003178,2]
[385361138,1757790817814,-1022.06,0.0003178,2]
[385361139,1757790817823,-400.0,0.0003178,2]
[385361140,1757790817832,-516.71,0.0003178,2]
[385361141,1757790817841,-400.0,0.0003178,2]
[385361142,1757790817850,-1379.73,0.0003178,2]
[385361143,1757790817859,-899.94,0.0003178,2]
[385361144,1757790817868,-866.46,0.0003178,2]
[385361145,1757790817877,-400.0,0.0003178,2]
[385361146,1757790817887,-556.4,0.0003178,2]
[385361147,1757790817896,-400.0,0.0003178,2]
[385361148,1757790817905,-1195.99,0.0003178,2]
[385361149,1757790817915,-518.54,0.0003178,2]
[385361150,1757790817924,-1740.08,0.0003178,2]
[385361151,1757790817933,-1006.76,0.0003178,2]
[385361152,1757790817942,-400.0,0.0003178,2]
[385361153,1757790817952,-668.89,0.0003178,2]
[385361154,1757790817961,-529.54,0.0003178,2]
[385361155,1757790817971,-927.44,0.0003178,2]
[385361156,1757790817981,-662.77,0.0003178,2]
[385361157,1757790817990,-586.65,0.0003178,2]
[385361158,1757790818000,-744.19,0.0003178,2]
[385361159,1757790818009,-899.11,0.0003178,2]
[385361160,1757790818019,-770.78,0.0003178,2]
[385361161,1757790818029,-644.35,0.0003178,2]
[385361162,1757790818039,-714.15,0.0003178,2]
[385361163,1757790818047,-453.23,0.0003178,2]
[385361164,1757790818057,-1002.56,0.0003178,2]
[385361165,1757790818066,-809.12,0.0003178,2]
[385361166,1757790818075,-400.0,0.0003178,2]
[385361167,1757790818084,-864.64,0.0003178,2]
[385361168,1757790818093,-836.53,0.0003178,2]
[385361169,1757790818102,-400.0,0.0003178,2]
[385361170,1757790818112,-400.0,0.0003178,2]
[385361171,1757790818121,-400.0,0.0003178,2]
[385361172,1757790818130,-800.39,0.0003178,2]
[385361173,1757790818140,-759.84,0.0003178,2]
[385361174,1757790818149,-438.06,0.0003178,2]
[385361175,1757790818158,-1067.29,0.0003178,2]
[385361176,1757790818167,-483.11,0.0003178,2]
[385361177,1757790818176,-890.46,0.0003178,2]
[385361178,1757790818185,-621.88,0.0003178,2]
[385361179,1757790818194,-1123.98,0.0003178,2]
[385361180,1757790818203,-440.32,0.0003178,2]
[385361181,1757790818212,-400.0,0.0003178,2]
[385361182,1757790818222,-2863.78,0.0003178,2]
[385361183,1757790818231,-757.94,0.0003178,2]
[385361184,1757790818241,-400.0,0.0003178,2]
[385361185,1757790818250,-557.63,0.0003178,2]
[385361186,1757790818259,-861.65,0.0003178,2]
[385361187,1757790818268,-803.76,0.0003178,2]
[385361188,1757790818279,-835.94,0.0003178,2]
[385361189,1757790818288,-434.25,0.0003178,2]
[385361190,1757790818298,-578.44,0.0003178,2]
[385361191,1757790818308,-550.07,0.0003178,2]
[385361192,1757790818317,-800.87,0.0003178,2]
[385361193,1757790818326,-541.06,0.0003178,2]
[385361194,1757790818337,-400.0,0.0003178,2]
[385361195,1757790818347,-400.0,0.0003178,2]
[385361196,1757790818356,-652.82,0.0003178,2]
[385361197,1757790818365,-400.0,0.0003178,2]
[385361198,1757790818375,-423.72,0.0003178,2]
[385361199,1757790818385,-1300.44,0.0003178,2]
[385361200,1757790818394,-439.16,0.0003178,2]
[385361201,1757790818403,-826.3,0.0003178,2]
[385361202,1757790818412,-787.45,0.0003178,2]
[385361203,1757790818421,-400.0,0.0003178,2]
[385361204,1757790818431,-535.57,0.0003178,2]
[385361205,1757790818440,-800.47,0.0003178,2]
[385361206,1757790818449,-1253.6,0.0003178,2]
[385361207,1757790818458,-544.69,0.0003178,2]
[385361208,1757790818468,-279.97708878,0.0003178,2]
[385361209,1757790818478,-400.0,0.0003178,2]
[385361210,1757790818487,-944.98,0.0003178,2]
[385361211,1757790818500,-842.01,0.0003178,2]
[385361212,1757790818510,-556.97,0.0003178,2]
[385361213,1757790818518,-652.8,0.0003178,2]
[385361214,1757790818528,-489.49,0.0003178,2]
[385361215,1757790818537,-1082.49,0.0003178,2]
[385361216,1757790818547,-173.839921,0.0003178,2]
[385361217,1757790818556,-400.0,0.0003178,2]
[385361218,1757790818565,-439.19314188,0.0003178,2]
[385361219,1757790818574,-439.06,0.0003178,2]
[385361220,1757790818583,-589.14,0.0003178,2]
[385361221,1757790818592,-890.6,0.0003178,2]
[385361222,1757790818602,-583.29,0.0003178,2]
[385361223,1757790818611,-708.58,0.0003178,2]
[385361224,1757790818620,-531.52,0.0003178,2]
[385361225,1757790818629,-1252.15,0.0003178,2]
[385361226,1757790818639,-947.61,0.0003178,2]
[385361227,1757790818648,-400.0,0.0003178,2]
[385361228,1757790818657,-1050.56,0.0003178,2]
[385361229,1757790818666,-872.42,0.0003178,2]
[385361230,1757790818676,-281.94148207,0.0003178,2]
[385361231,1757790818685,-791.71,0.0003178,2]
[385361232,1757790818694,-407.96,0.0003178,2]
[385361233,1757790818703,-400.0,0.0003178,2]
[385361234,1757790818713,-983.81,0.0003178,2]
[385361235,1757790818722,-868.8,0.0003178,2]
[385361236,1757790818732,-846.53,0.0003178,2]
[385361237,1757790818741,-2593.64,0.0003178,2]
[385361238,1757790818751,-730.89,0.0003178,2]
[385361239,1757790818760,-785.21,0.0003178,2]
[385361240,1757790818770,-400.0,0.0003178,2]
[385361241,1757790818779,-447.29,0.0003178,2]
[385361242,1757790818788,-964.92,0.0003178,2]
[385361243,1757790818797,-400.0,0.0003178,2]
[385361244,1757790818806,-759.47,0.0003178,2]
[385361245,1757790818816,-428.63,0.0003178,2]
[385361246,1757790818825,-400.0,0.0003178,2]
[385361247,1757790818834,-620.45,0.0003178,2]
[385361248,1757790818844,-537.7,0.0003178,2]
[385361249,1757790818853,-862.8,0.0003178,2]
[385361250,1757790818863,-505.66,0.0003178,2]
[385361251,1757790818872,-427.09,0.0003178,2]
[385361252,1757790818881,-400.0,0.0003178,2]
[385361253,1757790818891,-400.0,0.0003178,2]
[385361254,1757790818900,-1263.32,0.0003178,2]
[385361255,1757790818909,-400.0,0.0003178,2]
[385361256,1757790818918,-400.0,0.0003178,2]
[385361257,1757790818927,-786.15,0.0003178,2]
[385361258,1757790818936,-400.0,0.0003178,2]
[385361259,1757790818945,-4665.54,0.0003178,2]
[385361260,1757790818954,-400.0,0.0003178,2]
[385361261,1757790818963,-769.42,0.0003178,2]
[385361262,1757790818972,-958.92,0.0003178,2]
[385361263,1757790818984,-400.0,0.0003178,2]
[385361264,1757790818993,-1162.64,0.0003178,2]
[385361265,1757790819003,-843.12,0.0003178,2]
[385361266,1757790819011,-830.89,0.0003178,2]
[385361267,1757790819021,-400.0,0.0003178,2]
[385361268,1757790819031,-871.15,0.0003178,2]
[385361269,1757790819040,-484.74,0.0003178,2]
[385361270,1757790819049,-400.0,0.0003178,2]
[385361271,1757790819059,-582.6,0.0003178,2]
[385361272,1757790819075,-1106.22,0.0003178,2]
[385361273,1757790819092,-1197.3,0.0003178,2]
[385361274,1757790819110,-3316.79,0.0003178,2]
[385361275,1757790819127,-400.0,0.0003178,2]
[385361276,1757790819142,-400.0,0.0003178,2]
[385361277,1757790819161,-898.38,0.0003178,2]
[385361278,1757790819179,-400.0,0.0003178,2]
[385361279,1757790819198,-744.46,0.0003178,2]
[385361280,1757790819217,-1081.81,0.0003178,2]
[385361281,1757790819236,-1406.57,0.0003178,2]
[385361282,1757790819255,-420.47,0.0003178,2]
[385361283,1757790819271,-2017.53,0.0003178,2]
[385361284,1757790819290,-752.16,0.0003178,2]
[385361285,1757790819302,-843.08,0.0003178,2]
[385361286,1757790819318,-729.82,0.0003178,2]
[385361287,1757790819334,-400.0,0.0003178,2]
[385361288,1757790819348,-400.0,0.0003178,2]
[385361289,1757790819368,-924.42,0.0003178,2]
[385361290,1757790819382,-715.39,0.0003178,2]
[385361291,1757790819398,-1791.52,0.0003178,2]
[385361292,1757790819414,-400.0,0.0003178,2]
[385361293,1757790819430,-905.52,0.0003178,2]
[385361294,1757790819444,-1035.92,0.0003178,2]
[385361295,1757790819459,-543.24,0.0003178,2]
[385361296,1757790819474,-405.71,0.0003178,2]
[385361297,1757790819491,-1125.91,0.0003178,2]
[385361298,1757790819510,-405.06,0.0003178,2]
[385361299,1757790819528,-897.14,0.0003178,2]
[385361300,1757790819543,-838.71,0.0003178,2]
[385361301,1757790819558,-778.35,0.0003178,2]
[385361302,1757790819574,-519.54,0.0003178,2]
[385361303,1757790819589,-1097.98,0.0003178,2]
[385361304,1757790819604,-288.38971631,0.0003178,2]
[385361305,1757790819619,-746.12,0.0003178,2]
[385361306,1757790819634,-812.08,0.0003178,2]
[385361307,1757790819651,-1172.1,0.0003178,2]
[385361308,1757790819666,-400.0,0.0003178,2]
[385361309,1757790819681,-1004.56,0.0003178,2]
[385361310,1757790819697,-1550.32,0.0003178,2]
[385361311,1757790819711,-406.12,0.0003178,2]
[385361312,1757790819726,-738.83,0.0003178,2]
[385361313,1757790819741,-1445.07,0.0003178,2]
[385361314,1757790819756,-400.0,0.0003178,2]
[385361315,1757790819773,-681.1,0.0003178,2]
[385361316,1757790819788,-400.0,0.0003178,2]
[385361317,1757790819805,-1822.15,0.0003178,2]
[385361318,1757790819829,-417.32,0.0003178,2]
[385361319,1757790819851,-636.43,0.0003178,2]
[385361320,1757790819870,-1015.89,0.0003178,2]
[385361321,1757790819889,-983.53,0.0003178,2]
[385361322,1757790819907,-722.69,0.0003178,2]
[385361323,1757790819927,-670.74,0.0003178,2]
[385361324,1757790819950,-400.0,0.0003178,2]
[385361325,1757790819965,-458.09,0.0003178,2]
[385361326,1757790819981,-761.25,0.0003178,2]
[385361327,1757790819998,-589.72,0.0003178,2]
[385361328,1757790820016,-411.62,0.0003178,2]
[385361329,1757790820032,-422.08,0.0003178,2]
[385361330,1757790820047,-1393.14,0.0003178,2]
[385361331,1757790820063,-400.0,0.0003178,2]
[385361332,1757790820080,-400.0,0.0003178,2]
[385361333,1757790820097,-400.0,0.0003178,2]
[385361334,1757790820114,-1836.39,0.0003178,2]
[385361335,1757790820129,-1286.51,0.0003178,2]
[385361336,1757790820144,-806.89,0.0003178,2]
[385361337,1757790820158,-1118.88,0.0003178,2]
[385361338,1757790820172,-3209.32,0.0003178,2]
[385361339,1757790820186,-862.09,0.0003178,2]
[385361340,1757790820201,-2346.72,0.0003178,2]
[385361341,1757790820216,-1033.98,0.0003178,2]
[385361342,1757790820232,-400.0,0.0003178,2]
[385361343,1757790820248,-896.46,0.0003178,2]
[385361344,1757790820264,-702.99,0.0003178,2]
[385361345,1757790820277,-524.85,0.0003178,2]
[385361346,1757790820292,-837.65,0.0003178,2]
[385361347,1757790820306,-941.17,0.0003178,2]
[385361348,1757790820320,-1450.08,0.0003178,2]
[385361349,1757790820334,-872.8,0.0003178,2]
[385361350,1757790820349,-727.17,0.0003178,2]
[385361351,1757790820364,-711.83,0.0003178,2]
[385361352,1757790820378,-765.36,0.0003178,2]
[385361353,1757790820393,-778.2,0.0003178,2]
[385361354,1757790820408,-980.63,0.0003178,2]
[385361355,1757790820422,-2033.09,0.0003178,2]
[385361356,1757790820437,-677.3,0.0003178,2]
[385361357,1757790820451,-1183.03,0.0003178,2]
[385361358,1757790820465,-538.72,0.0003178,2]
[385361359,1757790820479,-722.19,0.0003178,2]
[385361360,1757790820498,-1015.48,0.0003178,2]
[385361361,1757790820523,-965.24,0.0003178,2]
[385361362,1757790820539,-599.03,0.0003178,2]
[385361363,1757790820553,-653.28,0.0003178,2]
[385361364,1757790820566,-974.74,0.0003178,2]
[385361365,1757790820580,-532.11,0.0003178,2]
[385361366,1757790820594,-775.6,0.0003178,2]
[385361367,1757790820607,-400.0,0.0003178,2]
[385361368,1757790820620,-1047.99,0.0003178,2]
[385361369,1757790820633,-867.54,0.0003178,2]
[385361370,1757790820647,-741.23,0.0003178,2]
[385361371,1757790820661,-603.59,0.0003178,2]
[385361372,1757790820675,-2266.8,0.0003178,2]
[385361373,1757790820688,-835.84,0.0003178,2]
[385361374,1757790820702,-1243.58,0.0003178,2]
[385361375,1757790820716,-526.24,0.0003178,2]
[385361376,1757790820729,-605.54,0.0003178,2]
[385361377,1757790820744,-502.15,0.0003178,2]
[385361378,1757790820758,-495.47,0.0003178,2]
[385361379,1757790820772,-462.88,0.0003178,2]
[385361380,1757790820786,-2089.21,0.0003178,2]
[385361381,1757790820799,-1484.39,0.0003178,2]
[385361382,1757790820813,-858.84,0.0003178,2]
[385361383,1757790820828,-708.83,0.0003178,2]
[385361384,1757790820842,-1139.82,0.0003178,2]
[385361385,1757790820856,-676.37,0.0003178,2]
[385361386,1757790820870,-920.38,0.0003178,2]
[385361387,1757790820884,-785.36,0.0003178,2]
[385361388,1757790820899,-400.0,0.0003178,2]